Cogmind - Beta 17 @@@ ROGUE MODE // 2026.07.01 @ 18:03:32 Player: Lolterzard Result: Destroyed by G-47 Trooper with Particle Gun Performance ------------- Evolutions (2) 1000 Regions Visited (5) 1000 Robots Destroyed (83) 415 Value Destroyed (2359) 2359 Prototype IDs (2) 40 Alien Tech Used (0) 0 Bonus (68) 68 TOTAL SCORE: 4882 Bonus ------- Follower Combat Kills 68 Cogmind --------- Core Integrity 0/550 Matter 300/300 Energy 100/100 System Corruption 0% Temperature Cool (18) Movement Core (50) Location -8/Storage Parts ------- > --- POWER (1) -------- (None) > --- PROPULSION (5) --- (None) > --- UTILITY (3) ------ Matter Filter > --- WEAPON (2) ------- (None) > --- INVENTORY (5) ---- Compact Matter Pod (150) Light Armor Plating Improved Light Armor Plating Improved Light Armor Plating Heavy Assault Rifle Peak State ------------ > --- POWER ------------ Ion Engine > --- PROPULSION ------- Improved Hover Unit Improved Hover Unit Aerolev Unit Aerolev Unit Aerolev Unit > --- UTILITY ---------- Large Storage Unit Matter Filter Improved Light Armor Plating > --- WEAPON ----------- Light Cannon Assault Cannon > --- INVENTORY -------- Ion Engine Improved Heat Sink Compact Matter Pod Weapon Shielding Light Armor Plating Light Armor Plating Light Armor Plating Light Armor Plating Improved Light Armor Plating Improved Light Armor Plating Shield Generator Heavy Assault Rifle Light Cannon Slug Cannon Mini Grenade Launcher [Rating: 31] Favorites ----------- Power Improved Ion Engine Engine Improved Ion Engine Propulsion Aerolev Unit Treads Light Treads Hover Unit Aerolev Unit Utility Large Storage Unit Device Seismic Detector Storage Large Storage Unit Protection Weapon Shielding Weapon Light Cannon Ballistic Gun Light Assault Rifle Ballistic Cannon Light Cannon Launcher Mini Grenade Launcher Build | -11 -10 -9 -9 -8 -8 ------- Run | Yrd Mat Mat Min Mat Sto Slots Evolved 4 | . . 2 . 2 . Power . | . . . . . . Propulsion 3 | . . 2 . 1 . Utility 1 | . . . . 1 . Weapon . | . . . . . . Parts Attached 52 | 7 3 13 4 20 5 Power 6 | 1 1 1 . 1 2 Engine 6 | 1 1 1 . 1 2 Core . | . . . . . . Reactor . | . . . . . . Propulsion 19 | 2 . 7 . 10 . Treads 7 | 2 . 3 . 2 . Leg . | . . . . . . Wheel . | . . . . . . Hover 12 | . . 4 . 8 . Flight . | . . . . . . Utility 14 | 2 1 3 2 5 1 Device 7 | 1 . 2 1 3 . Storage 2 | 1 1 . . . . Processor . | . . . . . . Hackware . | . . . . . . Protection 5 | . . 1 1 2 1 Artifact . | . . . . . . Weapon 13 | 2 1 2 2 4 2 Energy Gun . | . . . . . . Energy Cannon . | . . . . . . Ballistic Gun 4 | 2 . 2 . . . Ballistic Cannon 7 | . 1 . 2 3 1 Launcher 2 | . . . . 1 1 Special Weapon . | . . . . . . Impact Weapon . | . . . . . . Slashing Weapon . | . . . . . . Piercing Weapon . | . . . . . . Special Melee Weapon . | . . . . . . Unidentified Prototypes 2 | . . 1 . 1 . Parts Lost 30 | . 1 3 2 10 14 Power 3 | . . . . . 3 Propulsion 12 | . . 1 . 6 5 Utility 8 | . . 2 . 4 2 Weapon 7 | . 1 . 2 . 4 Highest Loss Streak 11 | . 1 1 1 4 11 To Critical Strikes . | . . . . . . Average Backups 11 | 1 4 10 13 13 13 Power . | . . 1 1 1 . Propulsion . | . 1 . 2 . . Utility 6 | . 1 5 7 8 9 Weapon 3 | . . 3 3 4 3 Tool/Special . | . . . . . . Unused Backups 11 | . 2 . . . 9 Power 1 | . 1 . . . . Propulsion . | . . . . . . Utility 8 | . . . . . 8 Weapon 2 | . 1 . . . 1 Tool/Special . | . . . . . . Average Slot Usage (%) 90 | . 99 90 99 77 83 Engine 10 | . 14 11 11 9 8 Treads 6 | . 28 17 . 1 . Hover 27 | . . 17 44 23 36 Device 7 | . 14 10 2 7 9 Storage 10 | . 14 11 11 9 8 Protection 5 | . . . 8 9 7 Ballistic Gun 6 | . 23 12 4 . . Ballistic Cannon 14 | . 4 9 17 17 14 Peak Build Rating 31 | 7 7 25 28 31 31 Average Rating 18 | 5 6 14 23 19 27 On Entrance 15 | . 7 7 25 24 31 Avg Prop Armor Cover (%) 15 | 22 . 16 . . 8 Naked Turns . | . . . . . . Heaviest Build 41 | 12 30 34 36 39 41 Greatest Support 80 | 40 40 80 32 40 38 Greatest Overweight (x) 12 | 3 . 9 1 12 2 Average Overweight (x) . | . . . 1 1 . Largest Inventory Capacity 15 | 8 15 15 15 15 15 Average Capacity 14 | 7 13 15 15 15 14 Most Carried 15 | 2 9 15 15 15 15 Average Carried 11 | 1 5 10 13 13 13 Final Capacity 15 | 8 15 15 15 15 5 Final Carried 15 | 2 9 15 14 15 5 Class Distribution -------------------- 100% | Mutant Dominant Class ---------------- Mutant | -10/Materials Mutant | -9/Materials Mutant | -9/Mines Mutant | -8/Materials Mutant | -8/Storage Resources | -11 -10 -9 -9 -8 -8 ----------- Run | Yrd Mat Mat Min Mat Sto Matter Collected 2437 | 322 203 482 211 863 356 Remotely 475 | . . 281 49 145 . Salvage Created 2563 | 198 376 892 185 637 275 Parts 158 | 10 29 67 11 35 6 Haulers Intercepted 3 | . 1 1 . 1 . Recyclers Shooed 5 | . . 2 . 1 2 Parts Field Recycled . | . . . . . . Retrieved Matter . | . . . . . . Parts Self-Destructed . | . . . . . . Prevented . | . . . . . . Parts Restored . | . . . . . . Kills | -11 -10 -9 -9 -8 -8 ------- Run | Yrd Mat Mat Min Mat Sto Combat Hostiles Destroyed 63 | . 11 20 8 19 5 Guns 24 | . 9 10 5 . . Cannons 39 | . 2 10 3 19 5 Classes Destroyed 12 | 2 4 3 1 2 . Worker 2 | . . . 1 1 . Builder 1 | . . 1 . . . Tunneler 4 | 4 . . . . . Hauler 3 | . 1 1 . 1 . Recycler 7 | 1 . 3 . 1 2 Operator 1 | . 1 . . . . Watcher 2 | . . 1 . 1 . Swarmer 18 | . 3 7 5 3 . Grunt 29 | . 8 8 2 8 3 Brawler 2 | . . . . 1 1 Sentry 13 | . . 5 1 6 1 Hunter 1 | . . . . 1 . Best Kill Streak 8 | 3 5 5 3 8 3 Combat Bots Only 8 | . 5 5 3 8 3 Max Kills in Single Turn 2 | 1 1 1 1 2 1 Gunslinging . | . . . . . . Exploded . | . . . . . . Melee . | . . . . . . Uniques/NPCs Destroyed . | . . . . . . Combat | -11 -10 -9 -9 -8 -8 -------- Run | Yrd Mat Mat Min Mat Sto Hostile Shots Fired 417 | . 47 104 36 124 106 Missed 108 | . 11 25 13 37 22 Hits 309 | . 36 79 23 87 84 Melee 6 | . . . . . 6 Projectile 303 | . 36 79 23 87 78 Critical Strikes 2 | . . 1 . . 1 Damage Taken 4310 | . 398 911 262 1330 1409 Core 751 | . 20 122 50 315 244 Absorbed by Shields . | . . . . . . Redirected to Shielding 99 | . . . 10 89 . Regen/Repaired (Parts) 47 | . . . . 47 . Core Remaining (%) 83 | 100 92 . 57 . . Volleys Fired 258 | 13 45 65 25 79 31 Largest 2 | 2 2 2 2 2 2 Hottest 70 | 40 50 50 60 67 70 Shots Fired 504 | 26 85 130 49 158 56 Gun 196 | 26 72 82 16 . . Cannon 307 | . 13 48 33 158 55 Launcher 1 | . . . . . 1 Special . | . . . . . . Kinetic 503 | 26 85 130 49 158 55 Thermal . | . . . . . . Explosive 1 | . . . . . 1 Electromagnetic . | . . . . . . Robot Hit Streak 24 | 7 10 18 4 24 7 Robot Miss Streak 6 | 3 6 4 5 4 5 Penetration Max . | . . . . . . Secondary Targets 1 | . . 1 . . . Max Gunslinging Chain 1 | . . 1 . . . Shots Hit Robots 314 | 15 55 87 21 105 31 Core Hits 133 | 8 23 43 11 37 11 Critical Kills . | . . . . . . Critical Parts Destroyed 1 | . . . . . 1 Critical Strikes 12 | . . 2 . 8 2 Destroy 1 | . . . . . 1 Blast 11 | . . 2 . 8 1 Melee Attacks . | . . . . . . Impact . | . . . . . . Slashing . | . . . . . . Piercing . | . . . . . . Sneak Attacks . | . . . . . . Combat Hostiles . | . . . . . . Follow-up Attacks . | . . . . . . Damage Inflicted 4870 | 161 592 1224 372 1876 645 Guns 1368 | 161 453 651 103 . . Cannons 3487 | . 139 566 269 1876 637 Explosions 2 | . . . . . 2 Melee . | . . . . . . Ramming 13 | . . 7 . . 6 Kinetic 4855 | 161 592 1217 372 1876 637 Thermal . | . . . . . . Explosive 2 | . . . . . 2 Electromagnetic . | . . . . . . Impact . | . . . . . . Slashing . | . . . . . . Piercing . | . . . . . . Highest Corruption 1 | . . . 1 . . Average Corruption 1 | . . . 1 . . Corruption Purged . | . . . . . . Corruption Blocked . | . . . . . . Effects 7 | . . . 7 . . Message Errors 1 | . . . 1 . . Matter Fused 2 | . . . 2 . . Heat Flow Errors 1 | . . . 1 . . Energy Discharges 2 | . . . 2 . . Alerts 1 | . . . 1 . . Overload Shots . | . . . . . . Overflow Damage 7 | . 7 . . . . Projectiles 7 | . 7 . . . . Explosions . | . . . . . . Melee . | . . . . . . Knockbacks 23 | . 1 2 3 12 5 Impact . | . . . . . . Kinetic 21 | . 1 2 2 11 5 Secondary 2 | . . . 1 1 . Self-Inflicted Damage 6 | . . 3 . . 3 Shots . | . . . . . . Rammed 2 | . . 1 . . 1 Targets Rammed 2 | . . 1 . . 1 Kicked . | . . . . . . Crushed . | . . . . . . Highest Temperature 231 | . 34 25 118 154 231 Average Temperature 40 | . 13 8 15 39 91 Received Heat Transfer 1710 | . 180 291 33 486 720 Siege Activations . | . . . . . . Martial Activations . | . . . . . . Shielding Activations . | . . . . . . Robots Disrupted . | . . . . . . Combat Hostiles . | . . . . . . Robots Corrupted 1 | . 1 . . . . Combat Hostiles . | . . . . . . Parts Fried 1 | . 1 . . . . Impact Corruptions 1 | . 1 . . . . Robots Melted . | . . . . . . Combat Hostiles . | . . . . . . Parts Melted . | . . . . . . Heat Transferred . | . . . . . . Parts Sabotaged . | . . . . . . Parts Stolen . | . . . . . . Parts Stripped . | . . . . . . Power Chain Reactions . | . . . . . . Alert | -11 -10 -9 -9 -8 -8 ------- Run | Yrd Mat Mat Min Mat Sto Maximum Alert Level 1 | . . 1 . . 1 Low Security (%) 90 | 100 100 57 100 100 82 Level 1 9 | . . 42 . . 17 Level 2 . | . . . . . . Level 3 . | . . . . . . Level 4 . | . . . . . . Level 5 . | . . . . . . High Security . | . . . . . . Max Security . | . . . . . . Peak Influence 344 | 10 170 344 131 143 224 Initial 121 | . . 63 121 . 27 Average 87 | 2 57 201 42 71 135 Influence Increases 2121 | 25 304 596 266 583 347 Destroy 0b10 Robot/C 1300 | . 220 400 180 400 100 Destroy 0b10 Robot/NC 100 | 25 10 30 5 20 10 Destroy Leader 330 | . 52 104 30 124 20 Allied During Kill 19 | . . . 6 13 . Successful Hack 12 | . 7 . . . 5 Disable Machine 45 | . 15 . . 15 15 Anti-Garrison Action 150 | . . . . . 150 Destroy Structure 30 | . . 2 . 11 17 Lose Combat Pursuer 135 | . . 60 45 . 30 Influence Decreases 2017 | 25 152 437 577 516 310 Entered New Map 319 | . . 89 190 . 40 Time Decay 1358 | 25 142 318 367 376 130 Lost Part 300 | . 10 30 20 100 140 Lost Ally 40 | . . . . 40 . Squads Dispatched 13 | . 2 1 . 7 3 Investigation 4 | . 1 1 . 2 . Extermination . | . . . . . . Reinforcement 4 | . 1 . . 2 1 Assault 2 | . . . . . 2 Garrison 3 | . . . . 3 . Intercept . | . . . . . . Searches Triggered . | . . . . . . Construction Impeded . | . . . . . . Haulers Reinforced . | . . . . . . Active Scanning Responses . | . . . . . . Cargo Convoy Interrupts . | . . . . . . Stealth | -11 -10 -9 -9 -8 -8 --------- Run | Yrd Mat Mat Min Mat Sto Distress Signals 5 | . . 3 . 2 . Communications Jammed . | . . . . . . Distress Signals . | . . . . . . Times Spotted 109 | . 18 29 13 28 21 Peak Tracking Total 11 | . 5 6 4 7 11 Tactical Retreats 7 | . . 3 2 . 2 Traps | -11 -10 -9 -9 -8 -8 ------- Run | Yrd Mat Mat Min Mat Sto Traps Triggered 10 | . 1 1 2 2 4 Indirectly . | . . . . . . Trap Hack Attempts . | . . . . . . Triggered . | . . . . . . Disarmed . | . . . . . . Reprogrammed . | . . . . . . Reused . | . . . . . . Traps Extracted . | . . . . . . Installed . | . . . . . . Triggered . | . . . . . . Machines | -11 -10 -9 -9 -8 -8 ---------- Run | Yrd Mat Mat Min Mat Sto Machines Disabled 4 | . 1 . . 1 2 Max in Single Turn 1 | . 1 . . 1 1 Garrison Access 1 | . . . . . 1 Machines Repaired . | . . . . . . Machines Dismantled . | . . . . . . Machines Sabotaged . | . . . . . . Overloaded Fab Kills . | . . . . . . Hacking | -11 -10 -9 -9 -8 -8 --------- Run | Yrd Mat Mat Min Mat Sto Machines Accessed 4 | . 1 . 1 1 1 Terminals 2 | . 1 . . . 1 Fabricators . | . . . . . . Repair Stations 1 | . . . . 1 . Recycling Units . | . . . . . . Scanalyzers . | . . . . . . Garrison Access . | . . . . . . Total Hacks 10 | . 1 . 1 4 4 Successful 7 | . 1 . 1 3 2 Failed 3 | . . . . 1 2 Catastrophic . | . . . . . . Database Lockouts . | . . . . . . Manual . | . . . . . . Terminals 5 | . 1 . . . 4 Fabricators . | . . . . . . Repair Stations 4 | . . . . 4 . Recycling Units . | . . . . . . Scanalyzers . | . . . . . . Garrison Access . | . . . . . . Terminal Hacks 4 | . 1 . 1 . 2 Open Door 1 | . . . 1 . . Hauler Manifests 1 | . . . . . 1 Registered Components 1 | . 1 . . . . Zone Layout 1 | . . . . . 1 Fabricator Hacks . | . . . . . . Repair Station Hacks 3 | . . . . 3 . Scan Component 2 | . . . . 2 . Repair 1 | . . . . 1 . Recycling Unit Hacks . | . . . . . . Scanalyzer . | . . . . . . Garrison Access Hacks . | . . . . . . Unauthorized Hacks . | . . . . . . Terminals . | . . . . . . Fabricators . | . . . . . . Repair Stations . | . . . . . . Recycling Units . | . . . . . . Scanalyzers . | . . . . . . Garrison Access . | . . . . . . Data Cores Recovered . | . . . . . . Used . | . . . . . . Hacking Detections 1 | . . . . . 1 Full Trace Events . | . . . . . . Feedback Events . | . . . . . . Feedback Blocked . | . . . . . . Robot Schematics Acquired . | . . . . . . Robots Built . | . . . . . . Authchips . | . . . . . . Time . | . . . . . . Total Robot Build Rating . | . . . . . . Part Schematics Acquired . | . . . . . . Parts Built . | . . . . . . Authchips . | . . . . . . Time . | . . . . . . Total Part Build Rating . | . . . . . . Part Studies Acquired . | . . . . . . Parts Repaired 1 | . . . . 1 . Time 60 | . . . . 60 . Parts Recycled . | . . . . . . Recycled Matter . | . . . . . . Retrieved Matter . | . . . . . . Retrieved Components . | . . . . . . Parts Scanalyzed . | . . . . . . Part Schematics Acquired . | . . . . . . Parts Damaged . | . . . . . . Bothacking | -11 -10 -9 -9 -8 -8 ------------ Run | Yrd Mat Mat Min Mat Sto Used RIF Installer . | . . . . . . Robots Hacked . | . . . . . . Non-combat . | . . . . . . Combat . | . . . . . . Robot Hacks Applied . | . . . . . . Relay Couplers Released 3 | . . . . . 3 Machine Destruction 3 | . . . . . 3 Fabnet Peak Effective % . | . . . . . . Robots Rewired . | . . . . . . Allies Hacked . | . . . . . . Hacks Repelled . | . . . . . . Allies | -11 -10 -9 -9 -8 -8 -------- Run | Yrd Mat Mat Min Mat Sto Total Allies 3 | . . . 3 . . Largest Group 3 | . . . 3 3 . Highest-Rated Group 40 | . . . 40 40 . Highest-Rated Ally 16 | . . . 16 16 . Total Orders . | . . . . . . Ally Attacks 20 | . . . 10 10 . Total Damage 255 | . . . 153 102 . Kills 3 | . . . 1 2 . Allies Corrupted . | . . . . . . Allies Melted . | . . . . . . Intel | -11 -10 -9 -9 -8 -8 ------- Run | Yrd Mat Mat Min Mat Sto Active Infowar (turns) 1036 | 9 413 276 . 338 . Seismic 1036 | 9 413 276 . 338 . Robot Analysis Total . | . . . . . . Derelict Logs Recovered 2 | . . . 2 . . Drone Launches . | . . . . . . Drone Recoveries . | . . . . . . Exploration | -11 -10 -9 -9 -8 -8 ------------- Run | Yrd Mat Mat Min Mat Sto Turns Passed 3745 | 113 413 707 1229 1005 278 Spaces Moved 2170 | 51 174 349 887 574 135 Core 38 | 22 . 3 . 10 3 Treads 387 | 29 174 148 . 36 . Legs . | . . . . . . Wheels . | . . . . . . Hover 1745 | . . 198 887 528 132 Flight . | . . . . . . Fastest Speed 36 | 50 160 38 98 36 38 Average Speed 110 | 128 160 120 98 110 99 Slowest Speed 650 | 200 160 500 98 650 166 Overloaded Moves . | . . . . . . Propulsion Burnouts . | . . . . . . Robots Hopped . | . . . . . . Potential Cave-ins . | . . . . . . Cave-ins Triggered . | . . . . . . Exploration Rate (%) 40 | 5 43 31 97 50 18 Regions Visited 5 Branch Regions 2 Pre-discovered Areas 1 | . . . 1 . . Known Exits Taken . | . . . . . . Unknown Exits Taken 5 | 1 1 1 1 1 . Scrap Searched 1 | . . . 1 . . Spaces Dug . | . . . . . . Terrain Destroyed 23 | . . . . 7 16 Melee . | . . . . . . Projectile 10 | . . . . 7 3 AOE 13 | . . . . . 13 Terrain Rammed . | . . . . . . Walls Destroyed . | . . . . . . Machines Disabled . | . . . . . . Actions | -11 -10 -9 -9 -8 -8 --------- Run | Yrd Mat Mat Min Mat Sto Total 3015 | 72 233 512 1198 783 217 Wait 466 | . 2 65 278 91 30 Move 2165 | 50 173 348 886 573 135 Hop . | . . . . . . Pick Up 34 | 2 8 11 3 9 1 Fast Attach 37 | 7 . 5 . 14 11 Attach 20 | . 1 5 3 7 4 Detach . | . . . . . . Swap 11 | . 2 5 1 1 2 Drop 22 | . 2 7 2 9 2 Fire 258 | 13 45 65 25 79 31 Melee . | . . . . . . Ram 2 | . . 1 . . 1 Kick . | . . . . . . Crush . | . . . . . . Escape Stasis . | . . . . . . Rewire . | . . . . . . Trap . | . . . . . . Miscellaneous . | . . . . . . Route ------- -11/Scrapyard -10/Materials (discovered 2 exits: [*Mat] / [*Min]) -9/Materials -9/Mines (discovered 2 exits: *Mat x2) -8/Materials (discovered 2 exits: [*Fac] / *Sto) -8/Storage History --------- Turn | Location | Event 8 | -11/Scrapyard | Discovered new exit (range 15) 114 | -11/Scrapyard | Entered Materials 222 | -10/Materials | Discovered new exit (range 16) 300 | -10/Materials | Build established: Mutant 462 | -10/Materials | Discovered new exit (range 14) 527 | -10/Materials | Entered another Materials area 527 | -9/Materials | Evolved 2 slots: Propulsion x2 1002 | -9/Materials | Discovered new exit (range 16) 1234 | -9/Materials | Entered Mines 1259 | -9/Mines | Learned 2 Materials zone layouts 1291 | -9/Mines | Met a Derelict who couldn't figure out how to use a Trap Extractor 1562 | -9/Mines | Found a hidden stash of uninstalled traps 1567 | -9/Mines | Learned location of Storage (-8) 1785 | -9/Mines | Assisted by bots powering up and referring to "LRC-V3" 1807 | -9/Mines | Discovered new exit (range 11) 2110 | -9/Mines | Learned Materials stockpile data 2117 | -9/Mines | A weapon hastily lodged in a ceiling crevice suddenly fell to the ground 2211 | -9/Mines | Discovered new exit (range 4) 2463 | -9/Mines | Entered Materials 2463 | -8/Materials | Accompanied by 3 allies 2463 | -8/Materials | Evolved 2 slots: Propulsion x1, Utility x1 2543 | -8/Materials | Repaired Aerolev Unit 2584 | -8/Materials | Garrison activated, responded to threat 2595 | -8/Materials | Lost 3 allies 2638 | -8/Materials | Destroyed 8 combat bots 2639 | -8/Materials | Lost 3 parts (3n) 2656 | -8/Materials | Discovered new exit (range 10) 3016 | -8/Materials | Lost 4 parts (2n2u) 3018 | -8/Materials | Core integrity fell below 50% 3402 | -8/Materials | Discovered new exit (range 13) 3468 | -8/Materials | Entered Storage 3602 | -8/Storage | Lost 3 parts (1p1n1w) 3735 | -8/Storage | Core integrity fell below 20% 3746 | -8/Storage | Destroyed by G-47 Trooper with Particle Gun Last Messages --------------- 03694_ B-36 Bruiser destroyed. 03695_ Aerolev Unit destroyed. 03696_ R-06 Scavenger collects Lgt. Armor Plating. 03696_ Imp. Ion Engine destroyed. 03699_ U-05 Engineer lays Concrete. 03700_ Acquired 26 matter. 03700_ U-05 Engineer lays Concrete. 03714_ M-28 Smith repairs G-50 Soldier. 03714_ Lgt. Cannon destroyed. 03716_ The unstable cave ceiling collapses. 03725_ Acquired 84 matter. 03728_ Imp. Hover Unit destroyed. 03730_ Lgt. Armor Plating destroyed. 03732_ Slug Cannon destroyed. 03733_ Dropped Lrg. Storage Unit. 03734_ M-28 Smith repairs L-31 Rogue. 03735_ Aerolev Unit destroyed. 03744_ R-06 Scavenger collects Imp. Heat Sink. 03745_ R-06 Scavenger collects Lgt. Armor Plating. 03746_ Ion Engine destroyed. Map ----- +----------------------------------------------------+ | ???# #?#%"%#????????????????? | | ???# #?#####????????????????? | | ???# % #??????????????????????? | | ???# ##?????????????????????? | | ???# ##?????????????????????? | | ???# ##?????????????????????? | | ???## ##?????????????????????? | | ???## ##?????????????????????? | | ????# "#??????????????????????? | | ????# "%#??????????????????????? | | ????# %#??????????????????????? | | ????#%g #??????????????????????? | | ????#mgg#??????????????????????? | | ????#!!g#??????????????????????? | | ????#]g!#??????????????????????? | | ????# #??????????????????????? | | ????#r r#??????????????????????? | | ????# #??????????????????????? | | ????#g #???###????????????????? | | ????# gr#?? ?????????????????? | | ????# g#? "??????????????????? | | ????# g# "???????????????????? | | ????# # "????????????????????? | | ????# l ; "????????????????????? | | ????# # "????????????????????? | | ????###@# "????????????????????? | | ??????# #? ????????????????????? | | ??????# #?? ???????????????????? | | ??????# #???#??????????????????? | | ???#### #??????????????????????? | | ???# ^ #??????????????????????? | | ???# #??????????????????????? | | ???# #??????????????????????? | | ???# #??????????????????????? | | ???# #??????????????????????? | | ???# #??????????????????????? | | ???# #??????????????????????? | | ???######??????????????????????? | | ???????????????????????????????? | | ???????????????????????????????? | | ???????????????????????????????? | | ???????????????????????????????? | | ???????????????????????????????? | | ???????????????????????????????? | | ???????????????????????????????? | | | | | | | | | | | +----------------------------------------------------+ Best States ------------- Heat Dissipation 31 Energy Generation 12 Energy Capacity 265 Matter Stores 300 Matter Capacity 300 Sight Range 16 Terrain Scan Density 10 Armor Coverage 150 Weapon Shielding 33 Evasion (%) 57 Recoil Reduction 4 Matter Filtering 30 Trap Extractor Capacity 6 Item Schematics ----------------- None Robot Schematics ------------------ None Fabricated ------------ Nothing Repaired ---------- Aerolev Unit | 41% | -8/Materials Studied --------- None Alien Tech Used ----------------- None Achievements -------------- None Challenges ------------ None Game ------ Seed TractorCouplerWings Manual? 0 Play Time 00:27:35 Cumulative 70.5 hours Start 2026.07.01 @ 17:36:53 End 2026.07.01 @ 18:03:32 Sessions 1 Manual Loads 0 Difficulty Rogue Special Mode None Game No. 147 Rogue 147 Adventurer 0 Explorer 0 Win Type - Total 0 Types 0/0/0/0/0/0/0/0/0/0 Lore% 31 Gallery% 30 Achievement% 26 Wizard Run 0 Options --------- Layout 0 ASCII 0 Keyboard 0 Movement Mouse Keybinds 0 Fullscreen 2 Font 24/Smallcaps Map View 76x50 Zoom Use 0% Tactical HUD 1 Map Filters NONE Filters NONE Steam 1 RUN: aefd3aa1-7647-4e82-9dda-4dbb4c3b45e8